[Event "SixDays Budapest March GM A 2025"]
[Site "Budapest"]
[Date "2025.03.25"]
[Round "2.1"]
[White "Moldagali, Beksultan"]
[Black "Aczel, Gergely"]
[Result "0-1"]
[Annotator "TA"]
[ECO "B54"]
[WhiteElo "2398"]
[BlackElo "2487"]
[PlyCount "118"]
[EventDate "2025.03.23"]
[EventCountry "HUN"]
[SourceTitle "playchess.com"]
[Source "ChessBase"]
[SourceQuality "1"]
[TimeControl "5400+30"]

{[%evp 12,118,0,0,5,1,6,-2,5,-1,0,-6,3,-18,11,-20,-9,-33,-34,-10,-10,-20,-33,-30,-26,-32,-9,-55,0,0,0,0,0,7,5,0,7,15,7,0,0,0,0,15,24,23,30,-28,-27,-18,-15,-30,-20,-21,-27,-33,0,0,0,0,0,-11,-6,-6,0,0,0,-36,-35,-61,-43,-60,-70,-38,-39,-265,-253,-233,-249,-262,-273,-464,-333,-493,-435,-441,-438,-426,-427,-498,-465,-626,-604,-582,-558,-583,-583,-964,-1626,-1884,-1525,-1180,-1208,-1045,-1084,-29990,-29991,-29966,-29966]} 1. e4 c5 {[%emt 0:00:50]} 2. Nf3 {[%emt 0:01:13]} d6 {[%emt 0:00:07]} 3. d4 {[%emt 0:00:37]} cxd4 {[%emt 0:00:19]} 4. Nxd4 {[%emt 0:00:03]} Nf6 {[%emt 0:00:04]} 5. Bd3 {[%emt 0:00:07]} Nc6 {[%emt 0:00:06]} 6. Nxc6 {[%emt 0:00:17]} bxc6 {[%emt 0:00:03]} 7. O-O {[%emt 0:00:12]} g6 {[%emt 0:00:06] B55: Sicilian: 2...d6 3 d4 cxd4 4 Nxd4 Nf6 5 f3.} 8. b3 {[%emt 0:00:36]} Bg7 {[%emt 0:00:17][%cal Of6e4]} 9. Bb2 {[%emt 0:00:09]} O-O {[%emt 0:00:06] The position is equal.} 10. Nd2 {[%emt 0:00:29]} a5 {[%emt 0:00:34]} 11. Qe2 $146 {[%emt 0:08:28]} ({Predecessor:} 11. a4 Nd7 12. Bxg7 Kxg7 13. Qc1 Nc5 14. Qb2+ Kg8 15. Qc3 Nxd3 16. cxd3 c5 17. f4 {1-0 Firouzja,A (2760)-Nanu,C (2525) Titled Tuesday intern op 30th Apr Early blitz 2024 (1)}) 11... e5 {[%emt 0:01:09]} 12. Nc4 {[%emt 0:04:03]} Qc7 {[%emt 0:00:32]} 13. Kh1 {[%emt 0:09:58]} Nh5 {[%emt 0:03:48]} 14. Ba3 {[%emt 0:02:06]} Rd8 {[%emt 0:00:25]} 15. Qe3 {[%emt 0:04:05]} Be6 {[%emt 0:09:37]} 16. Nb6 {[%emt 0:03:38]} Rab8 {[%emt 0:00:45]} 17. Na4 {[%emt 0:00:03]} Nf4 {[%emt 0:01:38]} 18. c4 {[%emt 0:01:06]} f5 {[%emt 0:11:18]} 19. Rad1 {[%emt 0:10:24]} (19. exf5 $11 {deserves consideration.} gxf5 20. Bb2) 19... Qf7 {[%emt 0:02:26] Black has space advantage and is better} (19... fxe4 $15 20. Bxe4 d5) 20. exf5 $11 {[%emt 0:06:02]} gxf5 {[%emt 0:00:12]} 21. Bc2 {[%emt 0:00:02][%cal Og2g3]} d5 $1 {[%emt 0:09:27]} 22. Nc5 {[%emt 0:00:33]} Bc8 {[%emt 0:14:31]} (22... dxc4 $6 23. Nxe6 Rxd1 24. Rxd1 $16) 23. Rfe1 {[%emt 0:07:14]} Ng6 {[%emt 0:06:00]} 24. Qd2 {[%emt 0:01:35]} Ra8 {[%emt 0:03:03]} 25. cxd5 {[%emt 0:03:53]} cxd5 {[%emt 0:00:16]} 26. Bd3 {[%emt 0:00:05]} Bf6 {[%emt 0:09:21]} 27. Bb5 {[%emt 0:01:01]} Qc7 {[%emt 0:01:03] Inhibits Bc6.} 28. Rc1 {[%emt 0:04:27][%cal Oc5d7]} Qb6 {[%emt 0:00:29] [#]} 29. Bd7 {[%emt 0:06:11]} Bxd7 {[%emt 0:15:16]} 30. Qxd5+ {[%emt 0:00:11] [#]} Be6 $1 {[%emt 0:00:05]} 31. Qxe6+ {[%emt 0:00:05]} Qxe6 {[%emt 0:00:05]} 32. Nxe6 {[%emt 0:00:05]} Rd2 {[%emt 0:00:06][%csl LRa2,LRf2]} 33. Bc5 {[%emt 0:06:36]} Kf7 {[%emt 0:02:34]} 34. Nc7 {[%emt 0:01:01]} Rc8 {[%emt 0:04:05]} 35. Nb5 {[%emt 0:00:39]} Be7 {[%emt 0:00:37] Wards off Nd6+} 36. Bxe7 {[%emt 0:10:02]} Rxc1 {[%emt 0:00:05]} 37. Rxc1 {[%emt 0:00:03]} Kxe7 {[%emt 0:00:06][%mdl 4096] Endgame KRN-KRN. White is a pawn up.} 38. Kg1 {[%emt 0:01:08]} Nf4 {[%emt 0:03:34]} 39. Nc3 {[%emt 0:01:07]} e4 {[%emt 0:01:21]} 40. h4 {[%emt 0:01:43]} Ke6 {[%emt 0:00:48] Black has more active pieces.} 41. Rd1 $1 {[%emt 0:05:28]} Rc2 {[%emt 0:00:29]} 42. Nb5 {[%emt 0:00:24] And now Nd4+ would win.} Rxa2 {[%emt 0:00:08]} 43. Kh2 $2 {[%emt 0:01:17] Loses the game.} (43. Rd8 $15) 43... Rxf2 $19 {[%emt 0:01:20]} 44. Kg3 {[%emt 0:00:37]} e3 {[%emt 0:00:07]} (44... Rxg2+ 45. Kxf4 Rf2+ 46. Kg5 $16) 45. Nd4+ {[%emt 0:01:42]} Kf6 {[%emt 0:00:36]} 46. Re1 $2 {[%emt 0:00:01]} (46. Ra1) 46... Nh5+ {[%emt 0:01:05]} (46... Rxg2+ 47. Kxf4 Rg4+ 48. Kxe3 Re4+ (48... Rxh4 $2 49. Ra1 $18) 49. Kf2 Rxd4 50. Ra1 $17) (46... Nxg2 47. Rxe3 Nxe3 48. Kxf2 Ng4+ 49. Kf3 $11) 47. Kh3 {[%emt 0:00:08]} (47. Kh2 $142 Ke5 48. Nxf5 Kxf5 (48... Rxf5 $2 49. Rxe3+ Kd4 50. Re8 $19) 49. Rxe3) 47... Rd2 {[%emt 0:01:37]} 48. Nf3 {[%emt 0:00:17]} Nf4+ {[%emt 0:00:54]} 49. Kg3 {[%emt 0:00:05][%cal Of3d2]} Nxg2 {[%emt 0:00:28]} (49... Rxg2+ $2 {is the wrong capture.} 50. Kxf4 Rg4+ 51. Kxe3 $18) 50. Rg1 {[%emt 0:02:31][%cal Of3d2]} f4+ {[%emt 0:00:05]} 51. Kg4 {[%emt 0:00:08]} Rf2 {[%emt 0:01:11]} 52. Ng5 {[%emt 0:01:25] [#]} h5+ $1 {[%emt 0:00:34]} 53. Kh3 {[%emt 0:00:37] [#]} Kf5 {[%cal Oe3e2] ...e2! would now be deadly. Prevents Ne4} 54. Ra1 {[%emt 0:00:26]} (54. Rxg2 e2) 54... e2 {[%emt 0:00:59]} (54... a4 55. Rxa4 e2 56. Ra5+ Kg6 57. Ra6+ Kg7 (57... Kf5 58. Ra5+ Kg6 59. Ra6+ Kg7 60. Ra7+ Kf8 61. Ra8+ Ke7 62. Ra7+ Ke8 63. Ra1 $19) 58. Ra7+ Kf8 (58... Kg6 $2 59. Ra6+ Kg7 60. Ra1 $19) 59. Ne6+ Kg8 60. Ra1) 55. Rxa5+ {[%emt 0:00:14]} Kg6 {[%emt 0:00:05]} 56. Ra6+ {[%emt 0:00:10] [#]} Kg7 $1 {[%emt 0:00:21]} 57. Ra7+ {[%emt 0:00:20]} Kf8 {[%emt 0:00:34]} 58. Rd7 {[%emt 0:01:44] [#]} Ke8 $1 {[%emt 0:00:37]} (58... e1=B 59. Nh7+ Kg8 60. Nf6+ Kf8 61. Nh7+ Ke8 62. Nf6+ Kf8 63. Nh7+ $11) 59. Ne4 {[%emt 0:00:26]} Kxd7 {[%emt 0:00:09] Weighted Error Value: White=0.51/Black=0.09 (flawless)   Loses game:     	White=1     	---        Mistake:       	White=4     	Black=1      Inaccurate:     	White=5     	Black=2      OK:         	White=20    	Black=25     Best:        	White=2     	Black=2      Strong:       	White=1     	Black=1      Brilliant:      	---       	Black=1} ({Worse is} 59... e1=B 60. Nf6+ (60. Nxf2 f3 $11) 60... Kf8 61. Nh7+ Kg8 62. Nf6+ Kf8 63. Nh7+ Ke8 64. Nf6+ Kf8 $11) 0-1

[Event "SixDays Budapest March GM A 2025"]
[Site "Budapest"]
[Date "2025.03.25"]
[Round "2.2"]
[White "Borgaonkar Akshay"]
[Black "Berczes, David"]
[Result "1/2-1/2"]
[Annotator "TA"]
[ECO "C11"]
[WhiteElo "2418"]
[BlackElo "2408"]
[PlyCount "57"]
[EventDate "2025.03.23"]
[EventCountry "HUN"]
[SourceTitle "playchess.com"]
[Source "ChessBase"]
[SourceQuality "1"]
[TimeControl "5400+30"]

{[%evp 13,57,0,16,16,17,8,29,27,26,4,11,0,7,0,0,-32,-18,-60,0,0,0,0,0,0,0,0,0,0,0,-55,-47,-54,-14,-83,-52,-100,-60,-149,-126,-301,-312,-300,-293,-300,-260,-500]} 1. e4 {[%emt 0:00:03]} e6 {[%emt 0:17:45]} 2. d4 {[%emt 0:00:11]} d5 {[%emt 0:00:05]} 3. Nc3 {[%emt 0:00:06]} Nf6 {[%emt 0:00:13]} 4. e5 {[%emt 0:00:09]} Nfd7 {[%emt 0:00:03]} 5. f4 {[%emt 0:00:11]} c5 {[%emt 0:00:07]} 6. Nf3 {[%emt 0:00:16]} Nc6 {[%emt 0:00:04]} 7. Be3 {[%emt 0:00:14]} a6 {[%emt 0:00:16]} 8. Ne2 {[%emt 0:00:42] C11: French: Classical System: 4 e5 and 4 Bg5 dxe4.} Qb6 {[%emt 0:00:26]} 9. Qc1 {[%emt 0:00:25]} Be7 {[%emt 0:00:14]} 10. c3 {[%emt 0:00:32] White has an edge.} O-O {[%emt 0:00:14]} 11. h4 {[%emt 0:01:33]} f6 {[%emt 0:00:34]} 12. h5 {[%emt 0:04:47]} h6 {[%emt 0:03:07]} 13. Rh3 {[%emt 0:00:52]} Rf7 {[%emt 0:00:18]} 14. Kf2 {[%emt 0:22:58]} fxe5 {[%emt 0:15:25]} 15. fxe5 {[%emt 0:00:29]} cxd4 $146 {[%emt 0:05:30]} ({Black should try} 15... Bg5 $1 $15) ({Predecessor:} 15... Ndxe5 16. dxe5 Nxe5 17. Kg1 Ng4 18. Rg3 e5 19. Rxg4 Bxg4 20. Nxe5 Rxf1+ 21. Qxf1 Bxh5 {1-0 Aroshidze,L (2531)-Gonzalez Garcia,J (2454) Catalunya-chT Gp2 2025 (1.1)}) 16. cxd4 $11 {[%emt 0:00:49]} Bg5 {[%emt 0:01:22]} 17. Kg1 {[%emt 0:11:08]} Bxe3+ {[%emt 0:06:25]} 18. Qxe3 {[%emt 0:00:10]} Qxb2 {[%emt 0:04:49]} 19. Rc1 {[%emt 0:01:38]} Ne7 {[%emt 0:13:27][%cal Od7b6]} 20. Nh4 {[%emt 0:01:38]} Nb6 {[%emt 0:20:54][%cal Ob6c4]} 21. Nc3 {[%emt 0:13:25]} ({White should play} 21. Rf3 $1 $11 Rxf3 (21... Qxa2 22. Rxf7 Kxf7 23. Qf4+ Kg8 24. Rc3 $18) 22. Qxf3) 21... Nc4 $15 {[%emt 0:05:07]} 22. Bxc4 {[%emt 0:00:33]} dxc4 {[%emt 0:00:03][%csl Oc4] Black has a strong passed pawn} 23. Rg3 {[%emt 0:01:46]} (23. Rb1 $11 Qc2 24. Rc1) 23... Bd7 $17 {[%emt 0:01:21]} 24. Nd1 {[%emt 0:12:47]} (24. Qxh6 $2 {too greedy.} Qf2+ 25. Kh2 Qxg3+ (25... Qxd4 26. Qg5 $17) 26. Kxg3 gxh6 $19) (24. Rb1 $1 $15 Qc2 25. Rxb7 (25. Qxh6 $2 Qf2+ 26. Kh2 Qxg3+ 27. Kxg3 gxh6 $19)) 24... Qb6 {[%emt 0:02:19]} 25. Nf2 {[%emt 0:05:17]} (25. Rxc4 $15 Bb5 26. Rc1) 25... Nd5 $36 {[%emt 0:00:48][%mdl 2048] Black has strong initiative.} 26. Qe4 {[%emt 0:00:21] This costs White the game.} (26. Qxh6 $17 Qxd4 27. Nf3) 26... Qb2 $1 $19 {[%emt 0:02:02][%csl LRa2,LRc1,LRf2] Black has a decisive advantage.} 27. Rc2 {[%emt 0:00:18] [#]} Qb1+ {[%emt 0:00:30]} 28. Kh2 {[%emt 0:00:01][%cal Of2g4]} Ba4 {[%emt 0:00:31]} (28... Rxf2 29. Rxg7+ Kxg7 30. Qg6+ Kh8 31. Qxh6+ Kg8 32. Qg5+ Kh7 33. Rxf2 $18) 29. Ng4 $2 {[%emt 0:07:37][%mdl 32768] Weighted Error Value: White=0.33/Black=0.07 (flawless)  An unexpected result.  Loses game:     	White=1     	---        Mistake:       	White=5     	Black=1      Inaccurate:     	White=2     	Black=2      OK:         	White=6     	Black=11     Best:        	White=1     	Black=5} (29. Rxc4 Qxe4 30. Nxe4) 1/2-1/2

[Event "SixDays Budapest March GM A 2025"]
[Site "Budapest"]
[Date "2025.03.25"]
[Round "2.3"]
[White "Ostrovskiy, Aleksandr"]
[Black "Zia, Tahsin Tajwar"]
[Result "0-1"]
[Annotator "TA"]
[ECO "B30"]
[WhiteElo "2394"]
[BlackElo "2327"]
[PlyCount "238"]
[EventDate "2025.03.23"]
[EventCountry "HUN"]
[SourceTitle "playchess.com"]
[Source "ChessBase"]
[SourceQuality "1"]
[TimeControl "5400+30"]

{[%evp 66,238,0,0,0,-14,0,-16,0,0,0,-8,-8,-35,-43,-55,-7,0,0,-41,-15,-56,-53,-95,-95,-117,-122,-112,-16,-8,-8,-117,-116,-116,-78,-78,-83,-92,-102,-657,-637,-596,-594,-588,-11,-295,-295,-295,-288,-290,-288,-288,-288,-288,-288,-288,-288,-288,-288,-288,-288,-288,-288,-288,-285,-251,-252,-374,-395,-467,-292,-292,-292,-251,-258,-249,-224,-282,-261,-299,-385,-4306,-378,-378,-398,-350,-263,-263,-212,-212,-212,-29979,-29980,-29980,-29981,-29983,-29984,-29984,-29985,-29985,-29986,-29985,-29977,-29977,-29978,-29978,-29976,-29981,-29975,-29976,-29977,-29981,-29973,-29970,-29972,-29965,0,-29970,-29971,-29970,-29971,-29980,-29976,-29977,-29973,-29977,-29978,-29980,-29978,-29981,-29977,-29976,-29978,-29977,-29975,-29975,-29974,-29968,0,-29948,0,-29977,0,-29973,0,-29974,0,-29973,-29974,-29974,-29969,-29980,-988,-5181,-2368,0,-89,0,0,-40,0,-29974,-29972,-29970,0,-29966,0,0,0,-29973,-29975,-29987,-29988,-29988,-29989]} 1. e4 {[%emt 0:04:24]} c5 {[%emt 0:00:41]} 2. Nf3 {[%emt 0:00:24]} Nc6 {[%emt 0:00:29]} 3. Bb5 {[%emt 0:05:28]} d6 {[%emt 0:00:23]} 4. O-O {[%emt 0:01:49]} Bd7 {[%emt 0:00:20]} 5. Re1 {[%emt 0:00:42]} Nf6 {[%emt 0:04:08]} 6. c3 {[%emt 0:03:05]} a6 {[%emt 0:00:18]} 7. Bf1 {[%emt 0:00:47]} Bg4 8. h3 {[%emt 0:03:13]} Bxf3 {[%emt 0:00:34]} 9. Qxf3 {[%emt 0:00:05]} Rg8 {[%emt 0:00:14]} 10. Na3 {[%emt 0:18:56]} g5 {[%emt 0:01:20]} 11. Nc2 {[%emt 0:02:21]} Ne5 {[%emt 0:25:07]} 12. Qd1 {[%emt 0:10:56]} c4 {[%emt 0:02:52]} 13. d4 {[%emt 0:18:44]} cxd3 {[%emt 0:00:45]} 14. Nb4 {[%emt 0:00:13]} g4 {[%emt 0:10:05]} 15. hxg4 {[%emt 0:01:05]} d2 {[%emt 0:13:44]} 16. Bxd2 {[%emt 0:02:11]} Nfxg4 {[%emt 0:03:40]} 17. Bf4 {[%emt 0:19:04]} e6 {[%emt 0:02:13]} 18. Nd3 {[%emt 0:02:43]} Nxd3 {[%emt 0:10:50]} 19. Qxd3 {[%emt 0:02:09]} e5 {[%emt 0:00:29]} 20. Bg3 {[%emt 0:00:42]} h5 {[%emt 0:00:50]} 21. Qf3 {[%emt 0:01:11]} Rc8 {[%emt 0:15:20]} 22. b3 {[%emt 0:00:01]} h4 {[%emt 0:01:27]} 23. Bh2 {[%emt 0:00:01]} Qf6 {[%emt 0:03:13]} 24. Qxf6 {[%emt 0:01:22]} Nxf6 {[%emt 0:00:02]} 25. Re3 {[%emt 0:00:46]} Bh6 {[%emt 0:00:50]} 26. Rh3 {[%emt 0:00:04]} Bg5 {[%emt 0:00:29]} 27. Re1 {[%emt 0:00:54]} Ke7 {[%emt 0:02:17]} 28. Rd3 {[%emt 0:00:04]} Rg6 {[%emt 0:00:33]} 29. a4 {[%emt 0:00:56]} Nd7 {[%emt 0:00:31]} 30. b4 {[%emt 0:00:18]} Rcg8 {[%emt 0:00:36]} 31. a5 {[%emt 0:00:32]} Bf4 {[%emt 0:00:35]} 32. Rh3 {[%emt 0:00:42]} Rg4 {[%emt 0:00:39]} 33. f3 {[%emt 0:00:35]} Bxh2+ {[%emt 0:00:26]} 34. Rxh2 {[%emt 0:00:19]} Rf4 {[%emt 0:00:09]} 35. Kf2 {[%emt 0:00:27]} Nf6 {[%emt 0:00:22]} 36. Ke2 {[%emt 0:00:30]} Rg3 {[%emt 0:01:15]} 37. Rd1 {[%emt 0:00:38]} Nh7 {[%emt 0:00:21]} 38. b5 {[%emt 0:00:31]} Ng5 {[%emt 0:00:33]} 39. bxa6 {[%emt 0:00:19]} bxa6 {[%emt 0:00:06]} 40. Rb1 {[%emt 0:00:37] [#]} h3 {[%emt 0:00:39]} (40... f5 $1 $15 41. exf5 e4) 41. Rb7+ $1 $11 {[%emt 0:00:32]} Kf8 {[%emt 0:00:34]} 42. Ra7 {[%emt 0:00:18]} hxg2 {[%emt 0:00:43]} 43. Bxg2 {[%emt 0:00:41]} Nxf3 {[%emt 0:00:30]} 44. Bxf3 {[%emt 0:00:28]} (44. Kf2 $2 Rxg2+ (44... Nxh2+ 45. Kxg3 Nf1+ 46. Bxf1 $11) 45. Rxg2 Nh4+ 46. Kg3 Nxg2 (46... Rxe4 $2 47. Rf2 $18) 47. Kxg2 Rxe4 $19) 44... Rgxf3 {[%emt 0:00:21]} 45. Rxa6 {[%emt 0:00:37]} Rxc3 {[%emt 0:00:16]} 46. Rxd6 {[%emt 0:00:25]} Rc2+ {[%emt 0:00:46]} (46... Ra3 $17 47. Rh8+ Kg7) 47. Rd2 $11 {[%emt 0:00:12]} Rxe4+ {[%emt 0:00:05]} 48. Kf3 {[%emt 0:00:55]} (48. Kd1 $11 {remains equal.} Rc6 49. Rhe2 Rxe2 50. Kxe2) 48... Rxd2 $1 $17 {[%emt 0:00:58]} 49. Rxd2 {[%emt 0:00:02]} Ra4 {[%emt 0:00:08]} 50. Rd5 {[%emt 0:00:40]} f6 {[%emt 0:00:18]} 51. Rb5 {[%emt 0:00:51]} Kf7 {[%emt 0:00:15]} 52. Rc5 $2 {[%emt 0:00:28][%mdl 8192]} (52. Ke3 $17) 52... Kg6 {[%emt 0:00:17]} 53. Ke3 {[%emt 0:00:23]} Kf5 {[%emt 0:00:32]} 54. Kd3 {[%emt 0:00:16]} Ra1 $2 {[%emt 0:00:18]} (54... Kf4 $19 {and ...e4+ would now be decisive} 55. Kc3 Ke3) 55. Kc4 $2 {[%emt 0:00:24][%mdl 8192]} (55. Kc2 $1 $11 {and White stays safe.}) 55... Kf4 $19 {[%emt 0:00:51]} 56. Kb5 {[%emt 0:00:19]} e4 {[%emt 0:00:21]} 57. Rc4 {[%emt 0:00:52]} Kf3 {[%emt 0:00:47]} 58. Rc5 {[%emt 0:00:37]} Kg4 {[%emt 0:01:04]} 59. Rc4 {[%emt 0:00:18]} f5 {[%emt 0:00:08]} 60. a6 {[%emt 0:00:01]} Kg3 {[%emt 0:00:30]} 61. Ra4 {[%emt 0:00:39]} Rxa4 {[%emt 0:01:13]} 62. Kxa4 {[%emt 0:00:01]} e3 $1 {[%emt 0:00:06]} 63. a7 {[%emt 0:00:02]} e2 {[%emt 0:00:04]} 64. a8=Q {[%emt 0:00:04]} e1=Q {[%emt 0:00:04]} (64... e1=B 65. Qg8+ Kh3 66. Qg5 Bg3 67. Qxf5+ Kg2 68. Kb4 Bb8 69. Kc3) 65. Qg8+ {[%emt 0:00:47]} Kf2 {[%emt 0:00:22]} 66. Qg5 {[%emt 0:02:16]} (66. Qh7 {was called for.} Qd1+ 67. Kb5) 66... Qe4+ $19 {[%emt 0:00:40]} 67. Kb5 {[%emt 0:00:25]} Qg4 {[%emt 0:00:49]} 68. Qf6 {[%emt 0:00:28]} f4 {[%emt 0:00:31]} 69. Qd4+ {[%emt 0:00:19]} Kg2 {[%emt 0:00:18]} 70. Qd2+ {[%emt 0:00:46]} Kh3 {[%emt 0:00:01]} 71. Ka6 {[%emt 0:00:33]} Qe6+ {[%emt 0:00:34]} 72. Kb7 {[%emt 0:00:15]} f3 {[%emt 0:00:27]} 73. Qf4 $2 {[%emt 0:00:38]} (73. Qc3 Qd7+ 74. Kb6 Qd6+ 75. Ka7) 73... Qg4 $2 {[%emt 0:01:03]} (73... Qd5+ 74. Kb8 Kg2 75. Qg4+ Kf1 76. Qh3+ Ke1) 74. Qh6+ {[%emt 0:00:25]} Kg2 {[%emt 0:00:24]} 75. Qc6 {[%emt 0:00:21]} Qh3 {[%emt 0:00:27]} 76. Qd5 {[%emt 0:00:35]} Qg3 {[%emt 0:01:04]} 77. Ka8 {[%emt 0:00:37]} Kg1 {[%emt 0:00:33]} 78. Qd1+ $2 {[%emt 0:00:39]} (78. Qc5+ $19 f2 79. Ka7) 78... Kh2 $1 {[%emt 0:00:08]} 79. Qd2+ {[%emt 0:00:31]} f2 {[%emt 0:00:12]} 80. Qh6+ {[%emt 0:00:30]} Kg2 {[%emt 0:00:30]} 81. Qd2 {[%emt 0:00:13]} Kg1 {[%emt 0:01:17]} 82. Qd4 {[%emt 0:00:06]} Kh2 {[%emt 0:00:26]} 83. Qh8+ {[%emt 0:00:39]} Kg2 {[%emt 0:00:13]} 84. Qb2 {[%emt 0:00:11]} Qf3+ {[%emt 0:00:40]} 85. Ka7 {[%emt 0:00:24]} Qf7+ {[%emt 0:00:24]} 86. Ka6 {[%emt 0:01:10]} Qg6+ {[%emt 0:00:21]} 87. Ka7 {[%emt 0:00:18]} Qh7+ {[%emt 0:00:27]} 88. Ka6 {[%emt 0:00:16]} Kg1 {[%emt 0:00:52]} 89. Qd4 {[%emt 0:00:05]} Qg6+ {[%emt 0:00:19]} 90. Ka7 {[%emt 0:00:36]} Qg3 $2 {[%emt 0:00:27]} (90... Qg2 91. Kb6 Qg6+ 92. Ka7 Qg5 93. Kb7 Kg2 94. Qb2 Qe7+ 95. Kc8 Qf8+ 96. Kd7 Qf5+ 97. Ke8 Qh5+ 98. Kd7 Qh7+ 99. Kc8 Qf5+ 100. Kd8 Qf8+ 101. Kd7) 91. Ka6 $2 {[%emt 0:01:09][%mdl 8192]} (91. Ka8 $11 Kh2 92. Qf6 Qg2+ 93. Kb8) 91... Kh1 {[%emt 0:00:50]} 92. Qd1+ {[%emt 0:00:48]} Kh2 {[%emt 0:00:28]} 93. Qd2 {[%emt 0:00:31]} Qa3+ {[%emt 0:00:34]} 94. Kb6 {[%emt 0:00:30]} Qb3+ {[%emt 0:00:05]} 95. Ka7 {[%emt 0:00:34]} Qf7+ {[%emt 0:00:10]} 96. Ka6 {[%emt 0:00:28]} Qe6+ {[%emt 0:00:37]} 97. Ka7 {[%emt 0:00:12]} Qe7+ {[%emt 0:00:21]} 98. Ka6 {[%emt 0:00:39]} Qf6+ {[%emt 0:00:30]} 99. Ka7 {[%emt 0:00:10]} Kg1 {[%emt 0:00:45]} 100. Qe3 {[%emt 0:00:07]} Qf7+ {[%emt 0:00:17]} 101. Kb6 {[%emt 0:01:17]} Qf6+ {[%emt 0:00:43]} 102. Ka7 $1 {[%emt 0:00:06]} Kh2 {[%emt 0:00:08]} 103. Qd2 {[%emt 0:00:25]} Qf3 $2 {[%emt 0:00:59]} (103... Qg7+ 104. Kb6 Qg6+ 105. Ka7 Qf6 106. Qc2 Qd4+ 107. Kb7 Qd7+ 108. Kb6 Qd6+ (108... Qd4+ $2 109. Kc6 $19) 109. Ka5 Kg1 110. Qc3 Qd5+ (110... f1=B 111. Qd4+ Qxd4 $11) 111. Kb4 Qe4+ (111... f1=R $2 112. Qg3+ Qg2 113. Qe3+ Kh2 114. Qe5+ Qg3 115. Qh8+ Kg2 116. Qa8+ Kh3 117. Qh8+ Qh4+ 118. Qxh4+ Kxh4 119. Kc5 $19) (111... f1=Q 112. Qg7+ Kf2 113. Qf6+ Ke2 114. Qa6+ Qd3 115. Qa2+ Qd2+ 116. Qxd2+ Kxd2 117. Kc5 Qf6 118. Kd5 Kc3 119. Ke4 Qg5 120. Kf3 Kd3 121. Kf2 Qg4 122. Kf1 Ke3 123. Ke1 Qg1#) 112. Kb3 f1=Q (112... f1=R 113. Qg3+ Qg2 114. Qe3+ Kh2 115. Qh6+ Qh3+ 116. Qxh3+ Kxh3 117. Kc4 Rf4+ 118. Kd5 Rf5+ 119. Kd4 Kg3 120. Ke4 Ra5 121. Kd4 Kf4 122. Kc3 Ra4 123. Kd3 Kf3 124. Kc3 Ke3 125. Kb3 Rh4 126. Kc3 Ke2 127. Kc2 Rh3 128. Kc1 Kd3 129. Kb2 Kd2 130. Ka1 Kc2 131. Ka2 Rg3 132. Ka1 Ra3#) (112... Qb7+ $2 113. Ka3 $19) 113. Qc5+ Kh2 114. Qd6+ Qff4 115. Qxf4+ Qxf4 116. Kc3 Kg3 117. Kd3 Kf3 118. Kc3 Ke2 119. Kb2 Qb4+ 120. Kc2 Ke3 121. Kc1 Kd3 122. Kd1 Qd2#) 104. Qb2 $2 {[%emt 0:01:06][%mdl 8192]} (104. Qd6+ $11 Qg3 105. Qd2) 104... Qf7+ {[%emt 0:01:03]} 105. Ka6 $2 {[%emt 0:00:26][%mdl 8192]} (105. Ka8 $11 Qf8+ (105... Qg8+ $2 106. Ka7 $19) 106. Ka7) 105... Qc4+ $2 {[%emt 0:00:21]} (105... Kg3 106. Qe5+ Kf3 107. Qc3+ Kg4 (107... Kg2 $2 108. Qc2 $19) 108. Qc8+ Kg5 109. Qc1+ Kg6 110. Qf1 Kg7 111. Kb5 Kf8 112. Kc6 Qg6+ 113. Kc7 Qg1 114. Qh3 f1=Q (114... f1=B 115. Qf5+ Ke7 116. Qh7+ Kf6 117. Qh8+ Kf5 118. Qh7+ Kf6 119. Qh6+ Ke7 120. Qd6+ Kf7 121. Qd5+ Kf6 122. Qd8+ Kf5 123. Qd7+ Ke4 124. Qe6+ Kd3 125. Qd5+ Kc3 126. Qa5+ Kd3 127. Qa3+ Ke4 128. Qa4+ Kf5 129. Qa5+ Kg6 130. Qb6+ Qxb6+ 131. Kxb6 $11) 115. Qh8+ Qg8 116. Qh6+ Qg7+ 117. Qxg7+ Kxg7 118. Kc6 Qc4+ 119. Kb7 Qb5+ 120. Kc7 Kf7 121. Kd6 Kf6 122. Kc7 Ke6 123. Kc8 Kd6 124. Kd8 Qd7#) 106. Kb6 $2 {[%emt 0:00:33][%mdl 8192]} (106. Kb7 $11) 106... Kg3 $1 {[%emt 0:00:12]} 107. Qe5+ {[%emt 0:00:31]} Qf4 {[%emt 0:00:03]} 108. Qc3+ {[%emt 0:00:24]} Kg4 {[%emt 0:00:42]} (108... Kg2 $142 109. Qc2 Qd6+ 110. Ka7 Kg1 111. Qf5 Qd4+ (111... f1=B 112. Qg5+ Kf2 113. Qh4+ Kf3 114. Qh5+ Kf2 115. Qh4+ Kg1 116. Qg5+ Kf2 117. Qf5+ Kg1 118. Qg5+ $11) 112. Kb8 f1=Q (112... f1=B 113. Qg6+ Bg2 114. Qb1+ Kh2 115. Qc2 $15) 113. Qg6+ Kh2 114. Qh5+ Qh3 115. Qxh3+ Kxh3 116. Kb7 Qd5+ 117. Ka7 Qb5 118. Ka8 Kg4 119. Ka7 Kf5 120. Ka8 Ke5 121. Ka7 Kd6 122. Ka8 Kc7 123. Ka7 Qb7#) 109. Qc8+ $19 {[%emt 0:00:37]} Kg5 {[%emt 0:00:52]} 110. Qg8+ {[%emt 0:00:23]} Kh6 {[%emt 0:01:07]} (110... Kf5 $11 111. Qc8+ Kg5 112. Qg8+ Kh4 113. Qh7+ Kg4 114. Qg8+ Qg5 115. Qc4+ Kh3 116. Qb3+ Kh4) 111. Qh8+ $17 {[%emt 0:00:11]} Kg6 {[%emt 0:00:01]} 112. Qg8+ {[%emt 0:00:10]} Kh5 {[%emt 0:00:01]} 113. Qd5+ $2 {[%emt 0:00:58][%mdl 8192]} (113. Qe8+ $11 Kg4 114. Qg8+ Qg5 115. Qc4+ Kh3 116. Qb3+ Kh4 117. Qc4+ Qg4 118. Qf1 Qd4+ 119. Kb7) 113... Kh4 {[%emt 0:00:43]} 114. Qd8+ {[%emt 0:00:30]} Kh5 $2 {[%emt 0:01:02]} (114... Qg5 $1 115. Qd4+ Kg3 116. Qc3+ Kg2 117. Qb2 Qf4 118. Kb7 Kh3 119. Qh8+ Qh4 120. Qc3+ Qg3 121. Qh8+ Kg2 122. Qb2 Kg1 123. Qb6 Kh2 124. Qh6+ Kg2 (124... Kg1 125. Qb6 $19) 125. Qd2 Qb3+ 126. Kc7 Kf3 127. Qc1 Qf7+ (127... Ke2 $2 128. Qh6 $19) 128. Kd8 Qf8+ 129. Kd7 Qf5+) 115. Qd5+ $2 {[%emt 0:00:04][%mdl 8192] [#]} (115. Qe8+ $11 Kg4 116. Qg8+ Qg5 117. Qc8+ Qf5 118. Qc4+ Kg5 119. Qf1) 115... Kg6 $2 {[%emt 0:00:09]} (115... Kg4 $1 {mates} 116. Qg8+ Qg5 117. Qc8+ Qf5 118. Qc4+ Kg5 119. Qf1 Kf6 120. Qh1 f1=Q (120... f1=B 121. Qc6+ Kf7 122. Qc7+ Kg8 123. Qd8+ Kg7 124. Qc7+ Kg6 125. Qd6+ Kf7 126. Qc7+ Kg6 127. Qd6+ Kh7 128. Qh2+ Bh3 129. Qc7+ Kg8 130. Qd8+ Kf7 131. Qc7+ Kg6 132. Qd6+ Kh7 133. Qe7+ Kg8 134. Qd8+ Kh7 135. Qe7+ Kh8 136. Qe8+ Kh7 137. Qe7+ $11) 121. Qc6+ Qe6 122. Qxe6+ Kxe6 123. Kc5 Qd3 124. Kc6 Qc4+ 125. Kb6 Kd6 126. Ka5 Qb3 127. Ka6 Kc6 128. Ka7 Qb7#) 116. Qg8+ $1 $11 {[%emt 0:00:11]} Kf5 {[%emt 0:00:11]} 117. Qd5+ $2 {[%emt 0:01:12][%mdl 8192] [#]} (117. Qc8+ $11 Kg5 118. Qg8+ Kh5 119. Qe8+ Kg4 120. Qg6+ Qg5 121. Qe6+ Kh4 122. Qc4+ Qg4 123. Qf1 Qd4+ 124. Kb7) 117... Kf6 $1 {[%emt 0:00:12]} 118. Qd8+ {[%emt 0:00:32]} Kg7 {[%emt 0:00:41]} 119. Qd7+ {[%emt 0:00:48]} Qf7 {[%emt 0:00:07]} 0-1